[Event "World Senior chT-65 2019"]
[Site "Rhodes"]
[Date "2019.04.22"]
[Round "7.28"]
[White "Danner, Lambert"]
[Black "Svensson, Soren"]
[Result "1/2-1/2"]
[ECO "A29"]
[WhiteElo "2013"]
[BlackElo "1964"]
[Annotator "NA"]
[PlyCount "83"]
[EventDate "2019.04.16"]
[EventType "team-tourn"]
[EventCountry "GRE"]
[SourceTitle "playchess.com"]
[Source "ChessBase"]
[SourceQuality "1"]
[WhiteTeam "Austria"]
[BlackTeam "Sweden"]
[WhiteTeamCountry "AUT"]
[BlackTeamCountry "SWE"]
[TimeControl "40/5400+30:1800+30"]

1. c4 {[%emt 0:00:00]} e5 {[%emt 0:00:00]} 2. g3 {[%emt 0:00:00]} Nf6 {[%emt 0:00:22]} 3. Bg2 {[%emt 0:00:08]} d5 {[%emt 0:00:48]} 4. cxd5 {[%emt 0:00:07]} Nxd5 {[%emt 0:00:10]} 5. Nc3 {[%emt 0:00:06]} Nb6 {[%emt 0:00:11]} 6. Nf3 {[%emt 0:00:22]} Nc6 {[%emt 0:00:12]} 7. O-O {[%emt 0:00:46]} Be7 {[%emt 0:00:13]} 8. d3 {[%emt 0:00:42]} O-O {[%emt 0:00:23]} 9. Bd2 {[%emt 0:00:36]} Be6 {[%emt 0:01:52]} 10. Rc1 {[%emt 0:03:22]} f5 {[%emt 0:07:19]} 11. a3 {[%emt 0:01:50]} h6 {[%emt 0:05:02]} 12. b4 {[%emt 0:02:40]} a6 {[%emt 0:00:45]} 13. Na4 {[%emt 0:03:03]} Nxa4 {[%emt 0:01:04]} 14. Qxa4 {[%emt 0:00:13]} e4 {[%emt 0:05:08]} 15. Rxc6 {[%emt 0:02:19]} bxc6 {[%emt 0:01:24]} 16. Ne5 {[%emt 0:01:25]} Bd5 {[%emt 0:01:56]} 17. Nxc6 {[%emt 0:01:53]} Qd7 {[%emt 0:04:50]} 18. Nxe7+ {[%emt 0:00:14]} Qxe7 {[%emt 0:00:07]} 19. Be3 {[%emt 0:01:04]} Qe6 {[%emt 0:01:31]} 20. Rc1 {[%emt 0:01:36]} c6 {[%emt 0:03:13]} 21. dxe4 {[%emt 0:01:13]} fxe4 {[%emt 0:05:34]} 22. Qa5 {[%emt 0:05:33]} Rf7 {[%emt 0:08:39]} 23. Qc5 {[%emt 0:02:38]} Rb7 {[%emt 0:04:24]} 24. Qc3 {[%emt 0:01:55]} a5 {[%emt 0:04:55]} 25. Bc5 {[%emt 0:00:45]} axb4 {[%emt 0:02:49]} 26. Bxb4 {[%emt 0:00:12]} Re8 {[%emt 0:03:56]} 27. Qe3 {[%emt 0:02:25]} Rd7 {[%emt 0:04:38]} 28. Qc5 {[%emt 0:07:21]} e3 {[%emt 0:09:03]} 29. Bxd5 {[%emt 0:01:15]} exf2+ {[%emt 0:00:47]} 30. Kxf2 {[%emt 0:00:18]} cxd5 {[%emt 0:01:27]} 31. Rc2 {[%emt 0:02:19]} Qe4 {[%emt 0:03:55]} 32. Kg1 {[%emt 0:01:32]} Rf7 {[%emt 0:04:18]} 33. Rc1 {[%emt 0:05:11]} Qxe2 {[%emt 0:03:23]} 34. Re1 {[%emt 0:00:28]} Qxe1+ {[%emt 0:02:12]} 35. Bxe1 {[%emt 0:00:14]} Rxe1+ {[%emt 0:00:08]} 36. Kg2 {[%emt 0:00:06]} Re2+ {[%emt 0:01:10]} 37. Kh3 {[%emt 0:04:52]} Rff2 {[%emt 0:02:07]} 38. Qxd5+ {[%emt 0:00:27]} Kh7 {[%emt 0:00:33]} 39. Kg4 {[%emt 0:01:21]} Rxh2 {[%emt 0:00:44]} 40. Qd3+ {[%emt 0:00:00]} Kg8 {[%emt 0:00:00]} 41. Qd8+ {[%emt 0:01:36]} Kh7 {[%emt 0:01:31]} 42. Qd3+ {[%emt 0:00:07]} 1/2-1/2

[Event "World Senior chT-65 2019"]
[Site "Rhodes"]
[Date "2019.04.22"]
[Round "7.29"]
[White "Andersson, Kaj"]
[Black "Boehnisch, Manfred"]
[Result "0-1"]
[ECO "B15"]
[WhiteElo "2030"]
[BlackElo "2287"]
[Annotator "NA"]
[PlyCount "114"]
[EventDate "2019.04.16"]
[EventType "team-tourn"]
[EventCountry "GRE"]
[SourceTitle "playchess.com"]
[Source "ChessBase"]
[SourceQuality "1"]
[WhiteTeam "Sweden"]
[BlackTeam "Germany"]
[WhiteTeamCountry "SWE"]
[BlackTeamCountry "GER"]
[TimeControl "40/5400+30:1800+30"]

1. e4 {[%emt 0:00:00]} c6 {[%emt 0:00:00]} 2. d4 {[%emt 0:00:00]} d5 {[%emt 0:00:00]} 3. Nc3 {[%emt 0:00:00]} g6 {[%emt 0:00:00]} 4. Bd3 {[%emt 0:04:00]} Bg7 {[%emt 0:01:05]} 5. Nge2 {[%emt 0:02:00]} dxe4 {[%emt 0:03:28]} 6. Bxe4 {[%emt 0:01:20]} Nf6 {[%emt 0:04:18]} 7. Bf3 {[%emt 0:01:26]} Bg4 {[%emt 0:05:56]} 8. Bxg4 {[%emt 0:01:26]} Nxg4 {[%emt 0:00:07]} 9. Bf4 {[%emt 0:03:17]} O-O {[%emt 0:06:27]} 10. O-O {[%emt 0:05:02]} e5 {[%emt 0:04:44]} 11. dxe5 {[%emt 0:01:19]} Nxe5 {[%emt 0:00:12]} 12. Qxd8 {[%emt 0:05:31]} Rxd8 {[%emt 0:00:16]} 13. Rad1 {[%emt 0:00:27]} Na6 {[%emt 0:01:15]} 14. Rxd8+ $11 {[%emt 0:01:03]} Rxd8 {[%emt 0:00:09]} 15. Bg5 {[%emt 0:11:26]} Rd7 {[%emt 0:05:55]} 16. Ne4 {[%emt 0:05:08]} Ng4 {[%emt 0:16:19]} 17. h3 {[%emt 0:05:51]} h6 {[%emt 0:01:02]} 18. Bd2 {[%emt 0:05:04]} Nf6 {[%emt 0:11:32]} 19. Nxf6+ {[%emt 0:11:41]} Bxf6 {[%emt 0:00:07]} 20. Bxh6 {[%emt 0:01:11]} Bxb2 {[%emt 0:00:06]} 21. Rb1 {[%emt 0:00:28]} Be5 {[%emt 0:00:23]} 22. Kf1 {[%emt 0:00:37]} Nb4 {[%emt 0:04:18]} 23. f4 {[%emt 0:01:19]} Bd6 {[%emt 0:00:10]} 24. c3 {[%emt 0:03:59]} Nd5 {[%emt 0:00:50]} 25. Kf2 {[%emt 0:02:46]} f6 {[%emt 0:01:26]} 26. f5 {[%emt 0:02:40]} g5 {[%emt 0:02:00]} 27. h4 {[%emt 0:00:52]} gxh4 {[%emt 0:01:31]} 28. Kf3 {[%emt 0:05:19]} Be5 {[%emt 0:02:46]} 29. c4 {[%emt 0:00:00]} Ne7 {[%emt 0:04:21]} 30. Kg4 {[%emt 0:02:37]} b6 {[%emt 0:02:12]} 31. Rf1 {[%emt 0:00:25]} Rd3 {[%emt 0:02:10]} 32. Kxh4 {[%emt 0:01:39]} Ra3 {[%emt 0:02:51]} 33. g4 {[%emt 0:00:37]} Rxa2 {[%emt 0:00:36]} 34. Rf2 {[%emt 0:00:36]} c5 {[%emt 0:03:10]} 35. Kh5 {[%emt 0:01:40]} Kf7 {[%emt 0:03:08]} 36. g5 {[%emt 0:02:11]} fxg5 {[%emt 0:00:45]} 37. Bxg5 {[%emt 0:01:29]} Bd4 {[%emt 0:02:16]} 38. Rh2 {[%emt 0:03:37]} Nxf5 {[%emt 0:01:09]} 39. Kg4 {[%emt 0:00:16]} Ng7 {[%emt 0:01:25]} 40. Kf3 {[%emt 0:00:00]} Rc2 {[%emt 0:00:00]} 41. Rh6 {[%emt 0:01:20]} Rxc4 {[%emt 0:02:47]} 42. Rd6 {[%emt 0:02:23]} Ne6 {[%emt 0:05:26]} 43. Bh4 {[%emt 0:04:08]} Ra4 {[%emt 0:03:08]} 44. Rd7+ {[%emt 0:00:37]} Kg6 {[%emt 0:00:52]} 45. Rd6 {[%emt 0:01:35]} Kh5 {[%emt 0:06:38]} 46. Be7 {[%emt 0:01:55]} Ng5+ {[%emt 0:00:38]} 47. Kg2 {[%emt 0:10:58]} Ra2 {[%emt 0:00:31]} 48. Kf1 {[%emt 0:00:16]} Nf3 {[%emt 0:01:43]} 49. Ng3+ {[%emt 0:01:32]} Kg4 {[%emt 0:00:20]} 50. Rg6+ {[%emt 0:00:55]} Kf4 {[%emt 0:01:58]} 51. Bd6+ {[%emt 0:02:03]} Ke3 {[%emt 0:01:29]} 52. Re6+ {[%emt 0:04:32]} Kd3 {[%emt 0:00:25]} 53. Ne4 {[%emt 0:00:11]} c4 {[%emt 0:04:55]} 54. Bb4 {[%emt 0:02:23]} a5 {[%emt 0:02:05]} 55. Bc3 {[%emt 0:00:57]} Nh2+ {[%emt 0:00:24]} 56. Ke1 {[%emt 0:00:32]} Re2+ {[%emt 0:00:47]} 57. Kd1 {[%emt 0:00:12]} Rxe4 {[%emt 0:00:14]} 0-1

[Event "World Senior chT-65 2019"]
[Site "Rhodes"]
[Date "2019.04.22"]
[Round "7.30"]
[White "Beltz, Robert"]
[Black "Carlsten, Peter"]
[Result "1-0"]
[ECO "A41"]
[WhiteElo "2158"]
[BlackElo "2002"]
[Annotator "NA"]
[PlyCount "106"]
[EventDate "2019.04.16"]
[EventType "team-tourn"]
[EventCountry "GRE"]
[SourceTitle "playchess.com"]
[Source "ChessBase"]
[SourceQuality "1"]
[WhiteTeam "Germany"]
[BlackTeam "Sweden"]
[WhiteTeamCountry "GER"]
[BlackTeamCountry "SWE"]
[TimeControl "40/5400+30:1800+30"]

1. d4 {[%emt 0:00:00]} d6 {[%emt 0:00:43]} 2. c4 {[%emt 0:03:38]} e5 {[%emt 0:00:21]} 3. dxe5 {[%emt 0:00:53]} dxe5 {[%emt 0:00:06]} 4. Qxd8+ {[%emt 0:03:10]} Kxd8 {[%emt 0:00:07]} 5. Nc3 {[%emt 0:00:25]} c6 {[%emt 0:00:12]} 6. Nf3 {[%emt 0:01:16]} f6 {[%emt 0:00:22]} 7. Be3 {[%emt 0:00:49]} Kc7 {[%emt 0:03:01]} 8. g3 {[%emt 0:02:31]} Be6 {[%emt 0:00:34]} 9. Nd2 {[%emt 0:00:16]} Nd7 {[%emt 0:02:18]} 10. Rc1 {[%emt 0:00:47]} Ne7 {[%emt 0:01:06]} 11. f4 {[%emt 0:10:42]} Nf5 {[%emt 0:04:16]} 12. Bf2 {[%emt 0:00:46]} Bc5 {[%emt 0:01:13]} 13. Bxc5 {[%emt 0:04:01]} Nxc5 {[%emt 0:00:12]} 14. b4 {[%emt 0:04:27]} Na6 {[%emt 0:02:55]} 15. a3 {[%emt 0:02:40]} Rad8 {[%emt 0:00:30]} 16. e4 {[%emt 0:01:52]} Nd4 {[%emt 0:01:50]} 17. Nd5+ {[%emt 0:05:54]} Kb8 {[%emt 0:01:46]} 18. Ne3 {[%emt 0:00:58]} c5 {[%emt 0:07:31]} 19. b5 {[%emt 0:08:25]} Nc7 {[%emt 0:00:11]} 20. h4 {[%emt 0:01:02]} h5 {[%emt 0:01:47]} 21. Bh3 {[%emt 0:01:25]} Bxh3 {[%emt 0:05:22]} 22. Rxh3 {[%emt 0:00:07]} Ne8 {[%emt 0:12:00]} 23. Nd5 {[%emt 0:03:24]} Nd6 {[%emt 0:00:32]} 24. f5 {[%emt 0:04:21]} Rdf8 {[%emt 0:03:46]} 25. Rh1 {[%emt 0:04:45]} Rf7 {[%emt 0:00:47]} 26. Rf1 {[%emt 0:01:12]} Rg8 {[%emt 0:00:40]} 27. Rc3 {[%emt 0:13:41]} g6 {[%emt 0:01:29]} 28. fxg6 {[%emt 0:00:13]} Rxg6 {[%emt 0:00:06]} 29. a4 {[%emt 0:00:31]} f5 {[%emt 0:05:04]} 30. exf5 {[%emt 0:03:41]} Rxf5 {[%emt 0:00:38]} 31. Rxf5 {[%emt 0:01:56]} N4xf5 {[%emt 0:00:32]} 32. Kf2 {[%emt 0:00:33]} b6 {[%emt 0:13:36]} 33. Rf3 {[%emt 0:06:41]} Rg4 {[%emt 0:16:41]} 34. Ne3 {[%emt 0:05:00]} Nxe3 {[%emt 0:01:24]} 35. Kxe3 {[%emt 0:00:39]} Nxc4+ {[%emt 0:00:17]} 36. Nxc4 {[%emt 0:00:15]} Rxc4 {[%emt 0:00:03]} 37. Rf8+ {[%emt 0:00:23]} Kc7 {[%emt 0:00:23]} 38. Rf7+ {[%emt 0:00:05]} Kb8 {[%emt 0:00:53]} 39. Rh7 {[%emt 0:00:58]} Rxa4 {[%emt 0:01:00]} 40. Rxh5 {[%emt 0:00:00]} Ra3+ {[%emt 0:00:00]} 41. Kf2 {[%emt 0:00:49]} e4 {[%emt 0:05:54]} 42. Re5 {[%emt 0:01:06]} Ra2+ {[%emt 0:00:29]} 43. Ke3 {[%emt 0:01:06]} Rg2 {[%emt 0:06:04]} 44. Kf4 {[%emt 0:00:47]} Kc7 {[%emt 0:00:11]} 45. Rxe4 {[%emt 0:00:49]} Kd6 {[%emt 0:00:17]} 46. h5 {[%emt 0:00:55]} Kd5 {[%emt 0:00:15]} 47. Re7 {[%emt 0:00:34]} c4 {[%emt 0:00:07]} 48. Rc7 {[%emt 0:02:16]} Kd4 {[%emt 0:00:16]} 49. h6 {[%emt 0:01:40]} c3 {[%emt 0:00:14]} 50. h7 {[%emt 0:00:03]} Rh2 {[%emt 0:00:08]} 51. Kg5 {[%emt 0:01:57]} c2 {[%emt 0:00:53]} 52. Kg6 {[%emt 0:00:02]} Kd3 {[%emt 0:00:12]} 53. Kg7 {[%emt 0:00:49]} Kd4 {[%emt 0:01:49]} 1-0

[Event "World Senior chT-65 2019"]
[Site "Rhodes"]
[Date "2019.04.22"]
[Round "7.31"]
[White "Lundgren, Ulf"]
[Black "Baumbach, Friedrich"]
[Result "1/2-1/2"]
[ECO "D02"]
[WhiteElo "1964"]
[BlackElo "2089"]
[Annotator "NA"]
[PlyCount "109"]
[EventDate "2019.04.16"]
[EventType "team-tourn"]
[EventCountry "GRE"]
[SourceTitle "playchess.com"]
[Source "ChessBase"]
[SourceQuality "1"]
[WhiteTeam "Sweden"]
[BlackTeam "Germany"]
[WhiteTeamCountry "SWE"]
[BlackTeamCountry "GER"]
[TimeControl "40/5400+30:1800+30"]

1. d4 {[%emt 0:00:00]} d5 {[%emt 0:00:00]} 2. Bf4 {[%emt 0:00:00]} Nf6 {[%emt 0:00:05]} 3. Nf3 {[%emt 0:00:01]} e6 {[%emt 0:00:20]} 4. e3 {[%emt 0:00:18]} c5 {[%emt 0:00:56]} 5. c3 {[%emt 0:00:11]} Nc6 {[%emt 0:00:22]} 6. Nbd2 {[%emt 0:01:12]} Be7 {[%emt 0:00:30]} 7. Bd3 {[%emt 0:01:10]} O-O {[%emt 0:01:40]} 8. Rc1 {[%emt 0:01:20]} b6 {[%emt 0:10:06]} 9. O-O {[%emt 0:02:04]} Bb7 {[%emt 0:04:54]} 10. h3 {[%emt 0:01:36]} a5 {[%emt 0:04:54]} 11. Qe2 {[%emt 0:03:16]} Qc8 {[%emt 0:07:18]} 12. Rfe1 {[%emt 0:06:49]} Ba6 {[%emt 0:03:48]} 13. Ne5 {[%emt 0:10:02]} Bxd3 {[%emt 0:05:11]} 14. Qxd3 {[%emt 0:08:11]} Nd7 {[%emt 0:05:08]} 15. Ndf3 {[%emt 0:06:13]} c4 {[%emt 0:11:29]} 16. Qc2 {[%emt 0:01:09]} f5 {[%emt 0:02:51]} 17. Qa4 {[%emt 0:02:42]} Ncxe5 {[%emt 0:05:21]} 18. Nxe5 {[%emt 0:00:24]} Nxe5 {[%emt 0:00:11]} 19. Bxe5 {[%emt 0:00:20]} Qe8 {[%emt 0:00:46]} 20. Qxe8 {[%emt 0:00:34]} Rfxe8 {[%emt 0:00:16]} 21. Re2 {[%emt 0:01:57]} b5 {[%emt 0:00:26]} 22. f3 {[%emt 0:01:12]} b4 {[%emt 0:00:57]} 23. Rf1 {[%emt 0:08:10]} Ra7 {[%emt 0:05:16]} 24. e4 {[%emt 0:01:07]} fxe4 {[%emt 0:02:45]} 25. fxe4 {[%emt 0:00:12]} Rf8 {[%emt 0:03:07]} 26. Rxf8+ {[%emt 0:05:53]} Bxf8 {[%emt 0:00:30]} 27. exd5 {[%emt 0:05:34]} exd5 {[%emt 0:00:02]} 28. Bg3 {[%emt 0:07:46]} Rb7 {[%emt 0:06:57]} 29. Be1 {[%emt 0:05:37]} a4 {[%emt 0:01:15]} 30. cxb4 {[%emt 0:07:03]} Bxb4 {[%emt 0:01:35]} 31. Bc3 {[%emt 0:02:17]} a3 {[%emt 0:06:57]} 32. Bxb4 {[%emt 0:03:19]} Rxb4 {[%emt 0:00:34]} 33. bxa3 {[%emt 0:00:13]} Rb1+ {[%emt 0:03:14]} 34. Kf2 {[%emt 0:02:09]} Rd1 {[%emt 0:00:24]} 35. a4 {[%emt 0:01:57]} Rxd4 {[%emt 0:00:24]} 36. a5 {[%emt 0:01:23]} Rf4+ {[%emt 0:01:13]} 37. Ke3 {[%emt 0:00:53]} g5 {[%emt 0:03:42]} 38. g3 {[%emt 0:00:55]} d4+ {[%emt 0:00:29]} 39. Kd2 {[%emt 0:00:19]} Rf5 {[%emt 0:01:13]} 40. Re4 {[%emt 0:00:00]} Rxa5 {[%emt 0:00:00]} 41. Rxd4 {[%emt 0:01:35]} Rxa2+ {[%emt 0:00:40]} 42. Kc3 {[%emt 0:05:02]} Ra3+ {[%emt 0:00:37]} 43. Kxc4 {[%emt 0:00:07]} Rxg3 {[%emt 0:00:10]} 44. Rg4 {[%emt 0:00:11]} Rxh3 {[%emt 0:08:58]} 45. Rxg5+ {[%emt 0:00:08]} Kf7 {[%emt 0:00:16]} 46. Kd4 {[%emt 0:00:30]} Kf6 {[%emt 0:00:13]} 47. Rg1 {[%emt 0:00:50]} Kf5 {[%emt 0:00:31]} 48. Rf1+ {[%emt 0:00:50]} Kg4 {[%emt 0:00:32]} 49. Ke4 {[%emt 0:00:12]} h5 {[%emt 0:00:33]} 50. Rf4+ {[%emt 0:01:32]} Kg5 {[%emt 0:00:20]} 51. Rf5+ {[%emt 0:01:27]} Kg6 {[%emt 0:00:05]} 52. Rf3 {[%emt 0:00:31]} Rh4+ {[%emt 0:00:24]} 53. Rf4 {[%emt 0:00:34]} Rh1 {[%emt 0:00:08]} 54. Rf2 {[%emt 0:00:42]} Kg5 {[%emt 0:00:17]} 55. Kf3 {[%emt 0:00:40]} 1/2-1/2

[Event "World Senior chT-65 2019"]
[Site "Rhodes"]
[Date "2019.04.22"]
[Round "7.32"]
[White "Just, Joachim"]
[Black "Andersson, Sven-Olof"]
[Result "1-0"]
[ECO "D03"]
[WhiteElo "1970"]
[BlackElo "1904"]
[Annotator "NA"]
[PlyCount "85"]
[EventDate "2019.04.16"]
[EventType "team-tourn"]
[EventCountry "GRE"]
[SourceTitle "playchess.com"]
[Source "ChessBase"]
[SourceQuality "1"]
[WhiteTeam "Germany"]
[BlackTeam "Sweden"]
[WhiteTeamCountry "GER"]
[BlackTeamCountry "SWE"]
[TimeControl "40/5400+30:1800+30"]

1. d4 {[%emt 0:00:00]} Nf6 {[%emt 0:00:00]} 2. Nf3 {[%emt 0:00:00]} d5 {[%emt 0:00:12]} 3. c3 {[%emt 0:00:30]} e6 {[%emt 0:00:55]} 4. Bg5 {[%emt 0:00:27]} Be7 {[%emt 0:00:21]} 5. e3 {[%emt 0:00:24]} O-O {[%emt 0:00:48]} 6. Nbd2 {[%emt 0:00:37]} Nbd7 {[%emt 0:00:39]} 7. Bd3 {[%emt 0:00:27]} c6 {[%emt 0:06:40]} 8. Ne5 {[%emt 0:00:59]} g6 {[%emt 0:02:54]} 9. h4 {[%emt 0:01:54]} Nxe5 {[%emt 0:02:33]} 10. dxe5 {[%emt 0:00:10]} Ne8 {[%emt 0:02:14]} 11. Bh6 {[%emt 0:01:00]} Ng7 {[%emt 0:00:12]} 12. h5 {[%emt 0:02:33]} Bg5 {[%emt 0:09:16]} 13. Bxg7 {[%emt 0:03:34]} Kxg7 {[%emt 0:00:28]} 14. Qg4 {[%emt 0:00:29]} f5 {[%emt 0:19:29]} 15. Qh3 {[%emt 0:02:15]} Rh8 {[%emt 0:05:18]} 16. f4 {[%emt 0:04:39]} Be7 {[%emt 0:01:31]} 17. g4 {[%emt 0:02:40]} Bd7 {[%emt 0:02:00]} 18. gxf5 {[%emt 0:01:39]} exf5 {[%emt 0:00:20]} 19. O-O-O {[%emt 0:00:55]} Qa5 {[%emt 0:07:06]} 20. Bb1 {[%emt 0:04:19]} b5 {[%emt 0:03:12]} 21. Rdg1 {[%emt 0:05:03]} Raf8 {[%emt 0:04:24]} 22. Nb3 {[%emt 0:03:17]} Qc7 {[%emt 0:04:24]} 23. Nd4 {[%emt 0:01:19]} Qc8 {[%emt 0:00:22]} 24. Qg2 {[%emt 0:05:17]} b4 {[%emt 0:01:55]} 25. cxb4 {[%emt 0:05:17]} c5 {[%emt 0:05:14]} 26. bxc5 {[%emt 0:00:39]} Bxc5 {[%emt 0:00:16]} 27. Bc2 {[%emt 0:03:03]} Bxd4 {[%emt 0:02:39]} 28. exd4 {[%emt 0:00:49]} Qc4 {[%emt 0:01:45]} 29. Kb1 {[%emt 0:03:38]} Be6 {[%emt 0:03:34]} 30. Qg5 {[%emt 0:01:38]} Qc7 {[%emt 0:01:49]} 31. Rc1 {[%emt 0:02:01]} Qd8 {[%emt 0:00:50]} 32. h6+ {[%emt 0:01:19]} Kf7 {[%emt 0:00:18]} 33. Bb3 {[%emt 0:01:04]} Qxg5 {[%emt 0:04:11]} 34. fxg5 {[%emt 0:00:08]} Rc8 {[%emt 0:02:59]} 35. Rhf1 {[%emt 0:02:11]} Ke7 {[%emt 0:01:19]} 36. Rf3 {[%emt 0:00:24]} Rxc1+ 37. Kxc1 {[%emt 0:00:01]} Rc8+ {[%emt 0:01:28]} 38. Kd2 {[%emt 0:00:18]} Kd7 {[%emt 0:03:43]} 39. Ba4+ {[%emt 0:02:11]} Kc7 {[%emt 0:00:35]} 40. Rc3+ {[%emt 0:00:00]} Kb6 {[%emt 0:00:00]} 41. Rxc8 {[%emt 0:01:01]} Bxc8 {[%emt 0:01:34]} 42. Be8 {[%emt 0:00:09]} Be6 {[%emt 0:00:10]} 43. Bxg6 {[%emt 0:00:24]} 1-0

[Event "World Senior chT-65 2019"]
[Site "Rhodes"]
[Date "2019.04.22"]
[Round "7.33"]
[White "Renman, Nils-Gustaf"]
[Black "Vucenovic, Dragomir"]
[Result "1/2-1/2"]
[ECO "D15"]
[WhiteElo "2358"]
[BlackElo "2168"]
[Annotator "NA RC"]
[PlyCount "202"]
[EventDate "2019.04.16"]
[EventType "team-tourn"]
[EventCountry "GRE"]
[SourceTitle "playchess.com"]
[Source "ChessBase"]
[SourceQuality "1"]
[WhiteTeam "Sweden"]
[BlackTeam "Switzerland"]
[WhiteTeamCountry "SWE"]
[BlackTeamCountry "SUI"]
[TimeControl "40/5400+30:1800+30"]

1. d4 {[%emt 0:00:00]} d5 {[%emt 0:00:00]} 2. c4 {[%emt 0:00:00]} c6 {[%emt 0:00:02]} 3. Nf3 {[%emt 0:00:36]} Nf6 {[%emt 0:00:15]} 4. Nc3 {[%emt 0:00:11]} a6 {[%emt 0:00:25]} 5. c5 {[%emt 0:00:14]} g6 {[%emt 0:00:14]} 6. Bf4 {[%emt 0:01:35]} Bg7 {[%emt 0:00:33]} 7. h3 {[%emt 0:00:41]} O-O {[%emt 0:01:34]} 8. e3 {[%emt 0:01:04]} Ne4 {[%emt 0:05:10]} 9. Rc1 {[%emt 0:10:42]} Nxc3 {[%emt 0:00:26]} 10. Rxc3 {[%emt 0:00:08]} Nd7 {[%emt 0:00:17]} 11. Be2 {[%emt 0:00:52]} Re8 {[%emt 0:01:12]} 12. O-O {[%emt 0:01:04]} e5 {[%emt 0:10:11]} 13. dxe5 {[%emt 0:01:51]} Nxe5 {[%emt 0:01:08]} 14. Nd4 {[%emt 0:00:12]} f5 {[%emt 0:03:28]} 15. b4 {[%emt 0:01:27]} Nf7 $11 {[%emt 0:01:48]} 16. Rd3 {[%emt 0:20:06]} Ng5 {[%emt 0:11:06]} 17. Bxg5 {[%emt 0:06:28]} Qxg5 {[%emt 0:00:11]} 18. Qd2 {[%emt 0:00:20]} Qe7 {[%emt 0:03:56]} 19. Bf3 {[%emt 0:06:21]} h6 {[%emt 0:06:09]} 20. Rc1 {[%emt 0:01:18]} Kh7 {[%emt 0:00:43]} 21. a4 {[%emt 0:03:50]} Bd7 {[%emt 0:07:05]} 22. g3 {[%emt 0:03:11]} Qf7 {[%emt 0:06:34]} 23. h4 {[%emt 0:01:20]} h5 {[%emt 0:01:23]} 24. Ne2 {[%emt 0:01:34]} Bh6 {[%emt 0:09:44]} 25. b5 {[%emt 0:01:39]} axb5 {[%emt 0:00:24]} 26. axb5 {[%emt 0:00:05]} Re7 {[%emt 0:03:42]} 27. bxc6 {[%emt 0:01:53]} bxc6 {[%emt 0:00:07]} 28. Rb3 {[%emt 0:00:53]} Ra7 {[%emt 0:05:14]} 29. Kg2 {[%emt 0:02:10]} Bg7 {[%emt 0:06:25]} 30. Rb6 {[%emt 0:01:24]} Ra4 {[%emt 0:02:40]} 31. Qd3 {[%emt 0:08:05]} Be5 {[%emt 0:08:18]} 32. Qb3 {[%emt 0:01:35]} Ra7 {[%emt 0:01:12]} 33. Rb4 {[%emt 0:05:15]} Qg7 {[%emt 0:01:15]} 34. Ra4 {[%emt 0:06:55]} Be8 {[%emt 0:01:16]} 35. Rxa7 {[%emt 0:05:56]} Rxa7 {[%emt 0:00:02]} 36. Rb1 {[%emt 0:01:02]} Qe7 {[%emt 0:00:52]} 37. Qb4 {[%emt 0:00:31]} Rc7 {[%emt 0:00:58]} 38. Nd4 {[%emt 0:00:56]} Bxd4 {[%emt 0:00:33]} 39. Qxd4 {[%emt 0:02:37]} Qg7 {[%emt 0:00:06]} 40. Bd1 {[%emt 0:00:00]} Qxd4 {[%emt 0:00:00]} 41. exd4 {[%emt 0:00:51]} Kg7 {[%emt 0:02:13]} 42. Rb6 {[%emt 0:07:02]} Re7 {[%emt 0:01:35]} 43. Ba4 {[%emt 0:07:46]} Re6 {[%emt 0:00:13]} 44. Kf3 {[%emt 0:02:53]} Kf6 {[%emt 0:00:34]} 45. Bc2 {[%emt 0:00:09]} Re1 {[%emt 0:00:56]} 46. Bb3 {[%emt 0:00:37]} Re6 {[%emt 0:00:23]} 47. Ra6 {[%emt 0:00:46]} Bd7 {[%emt 0:01:08]} 48. Bc2 {[%emt 0:01:46]} Re1 {[%emt 0:01:28]} 49. Bd3 {[%emt 0:00:33]} Re6 {[%emt 0:02:19]} 50. Kf4 {[%emt 0:01:44]} Re1 {[%emt 0:01:40]} 51. f3 {[%emt 0:00:15]} Re6 {[%emt 0:02:27]} 52. Ra7 {[%emt 0:00:34]} Be8 {[%emt 0:03:09]} 53. Ra2 {[%emt 0:02:19]} Re1 {[%emt 0:12:19]} 54. Re2 {[%emt 0:00:51]} Rxe2 {[%emt 0:01:03]} 55. Bxe2 {[%emt 0:00:03]} Bd7 {[%emt 0:00:08]} 56. Ke3 {[%emt 0:05:12]} Bc8 {[%emt 0:02:57]} 57. Kd2 {[%emt 0:00:30]} Ke7 {[%emt 0:00:24]} 58. Bd3 {[%emt 0:00:18]} Kf6 {[%emt 0:01:13]} 59. Kc3 {[%emt 0:01:37]} Ke7 {[%emt 0:00:49]} 60. Kd2 {[%emt 0:02:23]} Kf6 {[%emt 0:00:03]} 61. Be2 {[%emt 0:00:15]} Bd7 {[%emt 0:01:51]} 62. Ke3 {[%emt 0:00:07]} Bc8 {[%emt 0:00:59]} 63. Kf4 {[%emt 0:00:06]} Bb7 {[%emt 0:00:17]} 64. g4 {[%emt 0:01:13]} fxg4 {[%emt 0:00:17]} 65. fxg4 {[%emt 0:00:02]} hxg4 {[%emt 0:00:12]} 66. Kxg4 {[%emt 0:00:59]} Bc8+ {[%emt 0:00:23]} 67. Kf4 {[%emt 0:00:04]} Bf5 {[%emt 0:03:14]} 68. Ba6 {[%emt 0:00:04]} Bc2 {[%emt 0:00:35]} 69. Bc8 {[%emt 0:00:49]} Ba4 {[%emt 0:00:21]} 70. Bd7 {[%emt 0:00:11]} Ke7 {[%emt 0:00:26]} 71. Bg4 {[%emt 0:03:16]} Kf6 {[%emt 0:00:39]} 72. Be2 {[%emt 0:00:36]} Bc2 {[%emt 0:00:28]} 73. Bf3 {[%emt 0:01:30]} Bb1 {[%emt 0:00:32]} 74. Bd1 {[%emt 0:00:10]} Bf5 {[%emt 0:00:41]} 75. Ba4 {[%emt 0:00:04]} Bd7 {[%emt 0:00:15]} 76. Bc2 {[%emt 0:00:02]} Bc8 {[%emt 0:00:32]} 77. Bd3 {[%emt 0:01:59]} Bb7 {[%emt 0:00:27]} 78. Ke3 {[%emt 0:00:15]} Bc8 {[%emt 0:00:26]} 79. Kf4 {[%emt 0:00:37]} Bb7 {[%emt 0:00:06]} 80. Be2 {[%emt 0:00:18]} Bc8 {[%emt 0:01:01]} 81. Bg4 {[%emt 0:00:09]} Ba6 {[%emt 0:00:08]} 82. Bd7 {[%emt 0:00:14]} Bb5 {[%emt 0:00:11]} 83. Be8 {[%emt 0:00:18]} Ba4 {[%emt 0:00:13]} 84. Ke3 {[%emt 0:01:19]} Bb5 {[%emt 0:00:40]} 85. Kd2 {[%emt 0:00:13]} Kf5 {[%emt 0:01:57]} 86. Kc3 {[%emt 0:00:13]} g5 {[%emt 0:00:33]} 87. hxg5 {[%emt 0:02:04]} Kxg5 {[%emt 0:00:02]} 88. Kb4 {[%emt 0:00:02]} Kf6 {[%emt 0:01:24]} 89. Ka5 {[%emt 0:00:14]} Ke7 {[%emt 0:00:02]} 90. Bh5 {[%emt 0:00:16]} Kd8 {[%emt 0:00:42]} 91. Bf3 {[%emt 0:00:48]} Kc7 {[%emt 0:00:14]} 92. Bxd5 {[%emt 0:00:05]} Bf1 {[%emt 0:00:03]} 93. Bf3 {[%emt 0:00:16]} Bd3 {[%emt 0:00:56]} 94. Kb4 {[%emt 0:00:40]} Bg6 {[%emt 0:00:21]} 95. Kc3 {[%emt 0:00:27]} Bf7 {[%emt 0:00:10]} 96. Kd2 {[%emt 0:00:27]} Be6 {[%emt 0:00:17]} 97. Ke3 {[%emt 0:00:06]} Bf7 {[%emt 0:00:14]} 98. Kf4 {[%emt 0:00:05]} Ba2 {[%emt 0:00:26]} 99. Ke5 {[%emt 0:00:01]} Bb3 {[%emt 0:00:00]} 100. Bg4 {[%emt 0:00:27]} Bc4 {[%emt 0:00:11]} 101. Be6 {[%emt 0:00:08]} Bf1 {[%emt 0:00:09]} 1/2-1/2